fUSD/lending_fUSD_20260414
["ID","MTS","AMOUNT","RATE_DAILY","PERIOD"]
[420449466,1776097927927,578.20924308,0.00014434,2]
[420449467,1776097929271,200.0,0.00014434,2]
[420449468,1776097929321,294.23167366,0.00014031,2]
[420449469,1776097930580,1428.38747117,0.00014434,2]
[420449470,1776097931021,140.5834923,0.00014467,2]
[420449471,1776097931046,1483.4165077,0.00014467,2]
[420449472,1776097931080,151.0,0.00014434,2]
[420449473,1776097931273,500.0,0.00014434,2]
[420449474,1776097931315,500.0,0.00014434,2]
[420449475,1776097931624,209.40437684,0.00014434,2]
[420449476,1776097931802,200.0,0.00014434,2]
[420449477,1776097931851,6956.18911546,0.00014434,2]
[420449478,1776097931883,2595.97875001,0.00014434,2]
[420449479,1776097931939,151.0,0.00014434,2]
[420449480,1776097931985,500.0,0.00014434,2]
[420449481,1776097932435,151.0,0.00014434,2]
[420449482,1776097932590,500.0,0.00014434,2]
[420449483,1776097933065,151.0,0.00014434,2]
[420449484,1776097933966,500.0,0.00014434,2]
[420449485,1776097934727,721.12765535,0.00014434,2]
[420449486,1776097935412,151.0,0.00014434,2]
[420449487,1776097935646,500.0,0.00014434,2]
[420449488,1776097936402,151.0,0.00014434,2]
[420449489,1776097936922,500.0,0.00014434,2]
[420449490,1776097937177,151.0,0.00014434,2]
[420449491,1776097937692,500.0,0.00014434,2]
[420449492,1776097937856,151.0,0.00014434,2]
[420449493,1776097937974,500.0,0.00014434,2]
[420449494,1776097938057,151.0,0.00014434,2]
[420449495,1776097938197,500.0,0.00014434,2]
[420449496,1776097938343,151.0,0.00014434,2]
[420449497,1776097938572,200.0,0.00014434,2]
[420449498,1776097938739,500.0,0.00014434,2]
[420449499,1776097938914,151.0,0.00014434,2]
[420449500,1776097939098,500.0,0.00014434,2]
[420449501,1776097941493,151.0,0.00014434,2]
[420449502,1776097941819,400.0,0.0001445,2]
[420449503,1776097947878,743.50770149,0.00014434,2]
[420449504,1776097949087,500.0,0.00014434,2]
[420449505,1776097949699,500.0,0.00014434,2]
[420449506,1776097950344,500.0,0.00014434,2]
[420449507,1776097950549,500.0,0.00014434,2]
[420449508,1776097950675,174.61919141,0.00014434,2]
[420449509,1776097950895,209.40437684,0.00014434,2]
[420449510,1776097950963,500.0,0.00014434,2]
[420449511,1776097951121,500.0,0.00014434,2]
[420449512,1776097951284,273.0,0.00014467,2]
[420449513,1776097951676,500.0,0.00014434,2]
[420449514,1776097952393,500.0,0.00014434,2]
[420449515,1776097952479,6342.98643175,0.00014434,2]
[420449516,1776097952510,3657.01356825,0.00014434,2]
[420449517,1776097952559,500.0,0.00014434,2]
[420449518,1776097952719,500.0,0.00014434,2]
[420449519,1776097952937,500.0,0.00014434,2]
[420449520,1776097953419,500.0,0.00014434,2]
[420449521,1776097953508,4342.99643175,0.00014434,2]
[420449522,1776097953573,5657.00356825,0.00014434,2]
[420449523,1776097953787,500.0,0.00014434,2]
[420449524,1776097953913,500.0,0.00014434,2]
[420449525,1776097953961,3343.00643175,0.00014434,2]
[420449526,1776097953985,2127.66661035,0.00014434,2]
[420449527,1776097954340,178.08835478,0.00014434,2]
[420449528,1776097954476,500.0,0.00014434,2]
[420449529,1776097954570,500.0,0.00014434,2]
[420449530,1776097954941,500.0,0.00014434,2]
[420449531,1776097955204,500.0,0.00014434,2]
[420449532,1776097955539,500.0,0.00014434,2]
[420449533,1776097956063,500.0,0.00014434,2]
[420449534,1776097956123,500.0,0.00014434,2]
[420449535,1776097956761,500.0,0.00014434,2]
[420449536,1776097957668,500.0,0.00014434,2]
[420449537,1776097957721,151.0,0.00014434,2]
[420449538,1776097958109,151.0,0.00014434,2]
[420449539,1776097958321,-1000.0,0.00014467,2]
[420449540,1776097958722,151.0,0.00014434,2]
[420449541,1776097959610,151.0,0.00014434,2]
[420449542,1776097960001,-1000.0,0.00014467,2]
[420449543,1776097960107,151.0,0.00014434,2]
[420449544,1776097960162,170.0,0.00014434,2]
[420449545,1776097960780,170.0,0.00014434,2]
[420449546,1776097960843,151.0,0.00014434,2]
[420449547,1776097961392,151.0,0.00014434,2]
[420449548,1776097961457,-1000.0,0.00014467,2]
[420449549,1776097961542,170.0,0.00014434,2]
[420449550,1776097961962,151.0,0.00014434,2]
[420449551,1776097962007,-1000.0,0.00014467,2]
[420449552,1776097962048,151.0,0.00014434,2]
[420449553,1776097962152,170.0,0.00014434,2]
[420449554,1776097962312,-1000.0,0.00014467,2]
[420449555,1776097962663,-1000.0,0.00014467,2]
[420449556,1776097962695,151.0,0.00014434,2]
[420449557,1776097962752,170.0,0.00014434,2]
[420449558,1776097963000,-1000.0,0.00014467,2]
[420449559,1776097963445,151.0,0.00014434,2]
[420449560,1776097963589,-1000.0,0.00014467,2]
[420449561,1776097963678,170.0,0.00014434,2]
[420449562,1776097963769,-1000.0,0.00014467,2]
[420449563,1776097964064,151.0,0.00014434,2]
[420449564,1776097964109,170.0,0.00014434,2]
[420449565,1776097964163,-1000.0,0.00014467,2]
[420449566,1776097964549,-1000.0,0.00014467,2]
[420449567,1776097964657,151.0,0.00014434,2]
[420449568,1776097964947,41.25503487,0.00014434,2]
[420449569,1776097964980,128.74496513,0.00014434,2]
[420449570,1776097965018,-1000.0,0.00014467,2]
[420449571,1776097965310,151.0,0.00014434,2]
[420449572,1776097965549,-1000.0,0.00014467,2]
[420449573,1776097965713,170.0,0.00014434,2]
[420449574,1776097965850,-1000.0,0.00014467,2]
[420449575,1776097965915,693.3919763,0.00014434,2]
[420449576,1776097965960,151.0,0.00014434,2]
[420449577,1776097966121,-1000.0,0.00014467,2]
[420449578,1776097966377,170.0,0.00014434,2]
[420449579,1776097966473,-1000.0,0.00014467,2]
[420449580,1776097966800,151.0,0.00014434,2]
[420449581,1776097966889,-1000.0,0.00014467,2]
[420449582,1776097966988,170.0,0.00014434,2]
[420449583,1776097967172,-1000.0,0.00014467,2]
[420449584,1776097967467,151.0,0.00014434,2]
[420449585,1776097967991,-1000.0,0.00014467,2]
[420449586,1776097968187,-1000.0,0.00014467,2]
[420449587,1776097968248,151.0,0.00014434,2]
[420449588,1776097968286,-1000.0,0.00014467,2]
[420449589,1776097968544,-1000.0,0.00014467,2]
[420449590,1776097968954,-1000.0,0.00014467,2]
[420449591,1776097969321,-1000.0,0.00014467,2]
[420449592,1776097969671,-1000.0,0.00014467,2]
[420449593,1776097970386,-1000.0,0.00014467,2]
[420449594,1776097970490,-1000.0,0.00014467,2]
[420449595,1776097970786,-1000.0,0.00014467,2]
[420449596,1776097971105,-1000.0,0.00014467,2]
[420449597,1776097971528,-1000.0,0.00014467,2]
[420449598,1776097971857,-1000.0,0.00014467,2]
[420449599,1776097972238,-1000.0,0.00014467,2]
[420449600,1776097972542,-151.0,0.00014434,2]
[420449601,1776097972581,-849.0,0.00014467,2]
[420449602,1776097972926,-1000.0,0.00014467,2]
[420449603,1776097973252,-1000.0,0.00014467,2]
[420449604,1776097973592,-1000.0,0.00014467,2]
[420449605,1776097974051,-1000.0,0.00014467,2]
[420449606,1776097974527,-279.9045709,0.00014434,2]
[420449607,1776097974557,-720.0954291,0.00014467,2]
[420449608,1776097974860,-1000.0,0.00014467,2]
[420449609,1776097975252,-1000.0,0.00014467,2]
[420449610,1776097975621,-1000.0,0.00014467,2]
[420449611,1776097975997,-1000.0,0.00014467,2]
[420449612,1776097976451,-1000.0,0.00014467,2]
[420449613,1776097976729,-1000.0,0.00014467,2]
[420449614,1776097977102,-1000.0,0.00014467,2]
[420449615,1776097977467,-1000.0,0.00014467,2]
[420449616,1776097977838,-1000.0,0.00014467,2]
[420449617,1776097978741,-1000.0,0.00014467,2]
[420449618,1776097978828,-88.37905509,0.00014467,2]
[420449619,1776097978873,-911.62094491,0.00014467,2]
[420449620,1776097978997,-1000.0,0.00014467,2]
[420449621,1776097979475,-1000.0,0.00014467,2]
[420449622,1776097980017,-1000.0,0.00014467,2]
[420449623,1776097980790,-1000.0,0.00014467,2]
[420449624,1776097981063,-1000.0,0.00014467,2]
[420449625,1776097981507,-500.0,0.00014031,2]
[420449626,1776097981545,-157.22269792,0.00014031,2]
[420449627,1776097981581,-342.77730208,0.00014031,2]
[420449628,1776097981811,-157.22269792,0.00014031,2]
[420449629,1776097981842,-500.0,0.00014031,2]
[420449630,1776097981872,-342.77730208,0.00014031,2]
[420449631,1776097982331,-59.68434493,0.00014031,2]
[420449632,1776097982372,-500.0,0.00014031,2]
[420449633,1776097982401,-440.31565507,0.00014031,2]
[420449634,1776097982604,-59.68434493,0.00014031,2]
[420449635,1776097982630,-500.0,0.00014031,2]
[420449636,1776097982659,-440.31565507,0.00014031,2]
[420449637,1776097983015,-59.68434493,0.00014031,2]
[420449638,1776097983055,-500.0,0.00014031,2]
[420449639,1776097983089,-440.31565507,0.00014031,2]
[420449640,1776097983593,-59.68434493,0.00014031,2]
[420449641,1776097983619,-500.0,0.00014031,2]
[420449642,1776097983644,-440.31565507,0.00014031,2]
[420449643,1776097983754,-59.68434493,0.00014031,2]
[420449644,1776097983779,-500.0,0.00014031,2]
[420449645,1776097983810,-440.31565507,0.00014031,2]
[420449646,1776097984036,-144.23765074,0.00014031,2]
[420449647,1776097984080,-500.0,0.00014031,2]
[420449648,1776097984122,-500.0,0.00014031,2]
[420449649,1776097984169,-500.0,0.00014031,2]
[420449650,1776097984214,-267.06878952,0.00014031,2]
[420449651,1776097984254,-500.0,0.00014031,2]
[420449652,1776097984291,-500.0,0.00014031,2]
[420449653,1776097984326,-500.0,0.00014031,2]
[420449654,1776097984708,-500.0,0.00014031,2]
[420449655,1776097984773,-500.0,0.00014031,2]
[420449656,1776097984842,-500.0,0.00014031,2]
[420449657,1776097985246,-500.0,0.00014031,2]
[420449658,1776097985286,-500.0,0.00014031,2]
[420449659,1776097985896,-300.0,0.0001403,2]
[420449660,1776097985960,-500.0,0.00014031,2]
[420449661,1776097985993,-200.0,0.00014031,2]
[420449662,1776097987979,-300.0,0.00014031,2]
[420449663,1776097988023,-500.0,0.00014031,2]
[420449664,1776097988075,-500.0,0.00014031,2]
[420449665,1776097988137,-500.0,0.00014031,2]
[420449666,1776097988210,-500.0,0.00014031,2]
[420449667,1776097988253,-300.0,0.00014466,2]
[420449668,1776097988312,-150.0,0.00014466,2]
[420449669,1776097988489,500.0,0.00014466,2]
[420449670,1776097989729,-1000.0,0.00014467,2]
[420449671,1776097989790,-1000.0,0.00014467,2]
[420449672,1776097989911,-1000.0,0.00014467,2]
[420449673,1776097990259,-1000.0,0.00014467,2]
[420449674,1776097990598,-1000.0,0.00014467,2]
[420449675,1776097991252,-1000.0,0.00014467,2]
[420449676,1776097992498,-1000.0,0.00014467,2]
[420449677,1776097993548,-1000.0,0.00014467,2]
[420449678,1776097999252,462.91,0.00014398,2]
[420449679,1776098013877,151.57,0.000165,30]
[420449680,1776098016907,786.52,0.00013833,2]
[420449681,1776098028033,-786.52,0.00014107,2]
[420449682,1776098028060,-213.48,0.00014381,2]
[420449683,1776098029011,-573.04,0.00014381,2]
[420449684,1776098029043,-209.61224839,0.00014466,2]
[420449685,1776098029081,-217.34775161,0.00014466,2]
[420449686,1776098029654,-397.18670346,0.00014466,2]
[420449687,1776098029684,-602.81329654,0.00014467,2]
[420449688,1776098029743,-1000.0,0.00014467,2]
[420449689,1776098030155,-1000.0,0.00014467,2]
[420449690,1776098030583,-1000.0,0.00014467,2]
[420449691,1776098030991,-1000.0,0.00014467,2]
[420449692,1776098031350,-1000.0,0.00014467,2]
[420449693,1776098032483,-1000.0,0.00014467,2]
[420449694,1776098032526,-1000.0,0.00014467,2]
[420449695,1776098032569,-1000.0,0.00014467,2]
[420449696,1776098032653,-1000.0,0.00014467,2]
[420449697,1776098033100,-1000.0,0.00014467,2]
[420449698,1776098033376,-1000.0,0.00014467,2]
[420449699,1776098033734,-1000.0,0.00014467,2]
[420449700,1776098034122,-150.0,0.00014395,2]
[420449701,1776098034158,-850.0,0.00014467,2]
[420449702,1776098034545,-1000.0,0.00014467,2]
[420449703,1776098034849,-1000.0,0.00014467,2]
[420449704,1776098035243,-1000.0,0.00014467,2]
[420449705,1776098035589,-1000.0,0.00014467,2]
[420449706,1776098035995,-1000.0,0.00014467,2]
[420449707,1776098036342,-1000.0,0.00014467,2]
[420449708,1776098036671,-1000.0,0.00014467,2]
[420449709,1776098037050,-1000.0,0.00014467,2]
[420449710,1776098037310,-1000.0,0.00014467,2]
[420449711,1776098037762,-1000.0,0.00014467,2]
[420449712,1776098038075,-1000.0,0.00014467,2]
[420449713,1776098038421,-1000.0,0.00014467,2]
[420449714,1776098038801,-1000.0,0.00014467,2]
[420449715,1776098039225,-1000.0,0.00014467,2]
[420449716,1776098039587,-1000.0,0.00014467,2]
[420449717,1776098059024,-3029.2902125,0.0001437,2]
[420449718,1776098059048,-300.0,0.00014466,2]
[420449719,1776098059078,-1200.0,0.00014466,2]
[420449720,1776098059108,-12475.7097875,0.00014467,2]
[420449721,1776098067766,-1415.53,0.00014467,2]
[420449722,1776098075732,328.2214,0.00013932,2]
[420449723,1776098090771,-1000.0,0.00014368,2]
[420449724,1776098092633,-1000.0,0.00014368,2]
[420449725,1776098093011,-1000.0,0.00014368,2]
[420449726,1776098093440,-1000.0,0.00014368,2]
[420449727,1776098093751,-1000.0,0.00014368,2]
[420449728,1776098094082,-1000.0,0.00014368,2]
[420449729,1776098094472,-1000.0,0.00014368,2]
[420449730,1776098094777,-1000.0,0.00014368,2]
[420449731,1776098095281,-1000.0,0.00014368,2]
[420449732,1776098095481,-1000.0,0.00014368,2]
[420449733,1776098095802,-1000.0,0.00014368,2]
[420449734,1776098096502,-1000.0,0.00014368,2]
[420449735,1776098096677,-1000.0,0.00014368,2]
[420449736,1776098096849,-898.22154108,0.00014368,2]
[420449737,1776098096884,-101.77845892,0.00014467,2]
[420449738,1776098097295,-1000.0,0.00014467,2]
[420449739,1776098097792,-1000.0,0.00014467,2]
[420449740,1776098098321,-1000.0,0.00014467,2]
[420449741,1776098098470,-1000.0,0.00014467,2]
[420449742,1776098098845,-1000.0,0.00014467,2]
[420449743,1776098099213,-1000.0,0.00014467,2]
[420449744,1776098099707,-1000.0,0.00014467,2]
[420449745,1776098099896,-1000.0,0.00014467,2]
[420449746,1776098100262,-1000.0,0.00014467,2]
[420449747,1776098100335,150.0,0.00013656,2]
[420449748,1776098100573,-1000.0,0.00014467,2]
[420449749,1776098100958,-1000.0,0.00014467,2]
[420449750,1776098101330,-1000.0,0.00014467,2]
[420449751,1776098102860,-1000.0,0.00014466,2]
[420449752,1776098103745,-200.0,0.00014466,2]
[420449753,1776098103783,-159.0,0.00014466,2]
[420449754,1776098103818,-641.0,0.00014467,2]
[420449755,1776098112836,506.0,0.000135,2]
[420449756,1776098140678,-3590.87578581,0.00014367,2]
[420449757,1776098144700,-4960.53,0.00014368,2]
[420449758,1776098152251,1600.0,0.00013601,2]
[420449759,1776098158004,577.86,0.0001371,2]
[420449760,1776098162016,-300.0,0.00014367,2]
[420449761,1776098162059,-150.0,0.00014367,2]
[420449762,1776098165000,-300.0,0.00014367,2]
[420449763,1776098168508,-250.0,0.00014368,2]
[420449764,1776098181922,152.0,0.00010765,7]
[420449765,1776098184029,-2004.45,0.00014368,2]
[420449766,1776098186128,5500.0,0.00013985,2]
[420449767,1776098203387,506.0,0.000135,2]
[420449768,1776098205526,-4099.31520574,0.00014368,2]
[420449769,1776098206642,150.0,0.00013584,2]
[420449770,1776098211374,-10000.01,0.00014367,2]
[420449771,1776098261250,184.43,0.00013517,3]
[420449772,1776098388015,200.0,0.000139,2]
[420449773,1776098404702,8934.29,0.000135,2]
[420449774,1776098489040,200.0,0.00013562,2]
[420449775,1776098491547,200.0,0.00013562,7]
[420449776,1776098491580,281.29,0.0001349,2]
[420449777,1776098491620,10000.01,0.0001349,2]
[420449778,1776098491678,6433.46,0.0001349,2]
[420449779,1776098492311,3240.0,0.00013504,2]
[420449780,1776098499492,986.6,0.00013938,2]
[420449781,1776098523951,108702.75,0.00013473,2]
[420449782,1776098569918,506.0,0.000135,2]
[420449783,1776098590698,1576.6,0.000165,30]
[420449784,1776098597949,-1160.09204843,0.00027361,75]
[420449785,1776098598127,-270.90671171,0.00029364,82]
[420449786,1776098598294,-286.97506512,0.00029569,82]
[420449787,1776098598459,-2000.0,0.0003,120]
[420449788,1776098598602,-2000.0,0.0003,120]
[420449789,1776098598747,-2000.0,0.0003,120]
[420449790,1776098598893,-2000.0,0.0003,120]
[420449791,1776098599050,-2000.0,0.0003,120]
[420449792,1776098599222,-500.0,0.0003,120]
[420449793,1776098599369,-193.5,0.00030411,120]
[420449794,1776098599529,-287.633971,0.0003053,120]
[420449795,1776098599686,-500.0,0.00030822,120]
[420449796,1776098599835,-500.0,0.00031644,120]
[420449797,1776098599995,-2000.0,0.000317,120]
[420449798,1776098600152,-500.0,0.00031788,120]
[420449799,1776098600309,-532.72563771,0.00031829,90]
[420449800,1776098600490,-620.55293575,0.00032152,92]
[420449801,1776098600909,-500.0,0.00032466,120]
[420449802,1776098601079,-344.0,0.00032802,30]
[420449803,1776098601235,-195.0,0.00032802,30]
[420449804,1776098601410,-789.0,0.00032802,30]
[420449805,1776098601568,-245.0,0.00032802,30]
[420449806,1776098601737,-227.0,0.00032802,30]
[420449807,1776098601908,-220.0,0.00032828,30]
[420449808,1776098602069,-387.0,0.00032828,30]
[420449809,1776098602223,-4827.0,0.00032828,30]
[420449810,1776098602387,-1779.0,0.00032828,30]
[420449811,1776098602551,-441.0,0.00032829,30]
[420449812,1776098602732,-500.0,0.00033046,120]
[420449813,1776098602896,-500.0,0.00033288,120]
[420449814,1776098603048,-1509.38,0.000334,120]
[420449815,1776098603202,-1226.52,0.000334,120]
[420449816,1776098603373,-359.19,0.000334,120]
[420449817,1776098603537,-828.08,0.000334,120]
[420449818,1776098603687,-344.0,0.00033802,30]
[420449819,1776098603833,-195.0,0.00033802,30]
[420449820,1776098603983,-789.0,0.00033802,30]
[420449821,1776098604153,-245.0,0.00033802,30]
[420449822,1776098604322,-227.0,0.00033802,30]
[420449823,1776098604529,-220.0,0.00033828,30]
[420449824,1776098604712,-387.0,0.00033828,30]
[420449825,1776098604862,-4827.0,0.00033828,30]
[420449826,1776098605009,-1779.0,0.00033828,30]
[420449827,1776098605156,-441.0,0.00033829,30]
[420449828,1776098605303,-205.4,0.000341,30]
[420449829,1776098605450,-500.0,0.0003411,120]
[420449830,1776098605591,-500.0,0.0003421,60]
[420449831,1776098605747,-500.0,0.0003421,60]
[420449832,1776098605878,-218.75,0.0003421,60]
[420449833,1776098606038,-500.0,0.0003421,60]
[420449834,1776098606229,-500.0,0.0003421,60]
[420449835,1776098606397,-500.0,0.0003421,60]
[420449836,1776098606550,-500.0,0.0003421,60]
[420449837,1776098606694,-500.0,0.0003421,60]
[420449838,1776098606847,-218.75,0.0003421,60]
[420449839,1776098606989,-500.0,0.0003421,60]
[420449840,1776098607136,-218.75,0.0003421,60]
[420449841,1776098607287,-395.0932067,0.0003421,60]
[420449842,1776098607445,-500.0,0.0003421,60]
[420449843,1776098607590,-500.0,0.0003421,60]
[420449844,1776098607745,-500.0,0.0003421,60]
[420449845,1776098607896,-500.0,0.0003421,60]
[420449846,1776098608058,-500.0,0.0003421,60]
[420449847,1776098608223,-500.0,0.0003421,60]
[420449848,1776098608366,-500.0,0.0003421,60]
[420449849,1776098608511,-500.0,0.0003421,60]
[420449850,1776098608658,-500.0,0.0003421,60]
[420449851,1776098608813,-793.0447379,0.0003421,60]
[420449852,1776098608967,-500.0,0.0003421,60]
[420449853,1776098609114,-500.0,0.0003421,60]
[420449854,1776098609278,-500.0,0.0003421,60]
[420449855,1776098609431,-500.0,0.0003421,60]
[420449856,1776098609572,-500.0,0.0003421,60]
[420449857,1776098609722,-500.0,0.0003421,60]
[420449858,1776098609867,-500.0,0.0003421,60]
[420449859,1776098610012,-500.0,0.0003421,60]
[420449860,1776098610166,-218.75,0.0003421,60]
[420449861,1776098610319,-240.6509538,0.0003421,60]
[420449862,1776098610480,-699.9112022,0.0003421,60]
[420449863,1776098610631,-500.0,0.0003421,60]
[420449864,1776098610774,-500.0,0.0003421,60]
[420449865,1776098610925,-181.9279747,0.0003421,60]
[420449866,1776098611079,-500.0,0.0003421,60]
[420449867,1776098611227,-729.8275028,0.0003421,60]
[420449868,1776098611370,-347.5686921,0.0003421,60]
[420449869,1776098611521,-500.0,0.0003421,60]
[420449870,1776098611662,-500.0,0.0003421,60]
[420449871,1776098611817,-500.0,0.0003421,60]
[420449872,1776098611959,-500.0,0.0003421,60]
[420449873,1776098612513,-500.0,0.0003421,60]
[420449874,1776098612651,-500.0,0.0003421,60]
[420449875,1776098612801,-500.0,0.0003421,60]
[420449876,1776098612934,-500.0,0.0003421,60]
[420449877,1776098613068,-500.0,0.0003421,60]
[420449878,1776098613215,-156.5673687,0.0003421,60]
[420449879,1776098613367,-500.0,0.0003421,60]
[420449880,1776098613539,-500.0,0.0003421,60]
[420449881,1776098613703,-500.0,0.0003421,60]
[420449882,1776098613862,-500.0,0.0003421,60]
[420449883,1776098614004,-218.75,0.0003421,60]
[420449884,1776098614154,-500.0,0.0003421,60]
[420449885,1776098614297,-500.0,0.0003421,60]
[420449886,1776098614446,-656.2199033,0.0003421,60]
[420449887,1776098614600,-500.0,0.0003421,60]
[420449888,1776098614746,-500.0,0.0003421,60]
[420449889,1776098614886,-500.0,0.0003421,60]
[420449890,1776098615031,-638.7312854,0.0003421,60]
[420449891,1776098615186,-500.0,0.0003421,60]
[420449892,1776098615331,-563.1138113,0.0003421,60]
[420449893,1776098615478,-500.0,0.0003421,60]
[420449894,1776098615618,-500.0,0.0003421,60]
[420449895,1776098615769,-500.0,0.0003421,60]
[420449896,1776098615925,-500.0,0.0003421,60]
[420449897,1776098616083,-500.0,0.0003421,60]
[420449898,1776098616238,-610.8606767,0.0003421,60]
[420449899,1776098616408,-500.0,0.0003421,60]
[420449900,1776098616564,-589.23566,0.0003421,60]
[420449901,1776098616717,-500.0,0.0003421,60]
[420449902,1776098616872,-500.0,0.0003421,60]
[420449903,1776098617014,-500.0,0.0003421,60]
[420449904,1776098617163,-218.75,0.0003421,60]
[420449905,1776098617317,-500.0,0.0003421,60]
[420449906,1776098617478,-500.0,0.0003421,60]
[420449907,1776098617622,-500.0,0.0003421,60]
[420449908,1776098617775,-218.75,0.0003421,60]
[420449909,1776098617931,-830.5674069,0.0003421,60]
[420449910,1776098618096,-706.2593512,0.0003421,60]
[420449911,1776098618245,-235.1695971,0.0003421,60]
[420449912,1776098618418,-154.2579864,0.0003421,60]
[420449913,1776098618574,-500.0,0.0003421,60]
[420449914,1776098618712,-500.0,0.0003421,60]
[420449915,1776098618862,-500.0,0.0003421,60]
[420449916,1776098619005,-500.0,0.0003421,60]
[420449917,1776098619159,-500.0,0.0003421,60]
[420449918,1776098619317,-500.0,0.0003421,60]
[420449919,1776098619467,-500.0,0.0003421,60]
[420449920,1776098619617,-500.0,0.0003421,60]
[420449921,1776098619762,-500.0,0.0003421,60]
[420449922,1776098619915,-500.0,0.0003421,60]
[420449923,1776098620050,-500.0,0.0003421,60]
[420449924,1776098620191,-500.0,0.0003421,60]
[420449925,1776098620330,-500.0,0.0003421,60]
[420449926,1776098620478,-838.8024718,0.0003421,60]
[420449927,1776098620611,-1921.0,0.00034222,30]
[420449928,1776098620778,-422.0,0.00034222,30]
[420449929,1776098620973,-2770.65,0.00034295,120]
[420449930,1776098621142,-500.0,0.00034304,120]
[420449931,1776098621281,-344.0,0.00034802,30]
[420449932,1776098621440,-195.0,0.00034802,30]
[420449933,1776098621580,-789.0,0.00034802,30]
[420449934,1776098621716,-245.0,0.00034802,30]
[420449935,1776098621861,-227.0,0.00034802,30]
[420449936,1776098622011,-220.0,0.00034828,30]
[420449937,1776098622150,-387.0,0.00034828,30]
[420449938,1776098622289,-4827.0,0.00034828,30]
[420449939,1776098622428,-1779.0,0.00034828,30]
[420449940,1776098622562,-441.0,0.00034829,30]
[420449941,1776098622694,-162.88770613,0.00034849,120]
[420449942,1776098622828,-500.0,0.00034932,120]
[420449943,1776098622969,-786.39232521,0.0003494,100]
[420449944,1776098623136,-350.59,0.00035,30]
[420449945,1776098623278,-306.63,0.000351,90]
[420449946,1776098623413,-207.02,0.000351,90]
[420449947,1776098623545,-500.0,0.00035562,120]
[420449948,1776098623678,-3080.0,0.00035616,120]
[420449949,1776098623821,-2153.0,0.00035616,120]
[420449950,1776098623975,-500.0,0.00035753,120]
[420449951,1776098624136,-344.0,0.00035802,30]
[420449952,1776098624311,-195.0,0.00035802,30]
[420449953,1776098624457,-789.0,0.00035802,30]
[420449954,1776098624598,-245.0,0.00035802,30]
[420449955,1776098624744,-227.0,0.00035802,30]
[420449956,1776098624890,-220.0,0.00035828,30]
[420449957,1776098625060,-387.0,0.00035828,30]
[420449958,1776098625214,-4827.0,0.00035828,30]
[420449959,1776098625362,-1779.0,0.00035828,30]
[420449960,1776098625513,-441.0,0.00035829,30]
[420449961,1776098625651,-500.0,0.00036164,33]
[420449962,1776098625797,-795.37604777,0.00036334,105]
[420449963,1776098625937,-805.69570027,0.00036349,105]
[420449964,1776098626076,-616.2,0.000365,30]
[420449965,1776098626214,-500.0,0.00036575,120]